Workbook

Sheet Admin (hidden)
B4: Utility
B5: Burlington Hydro Inc.
B7: 2014 Target
B8: kWh | C8: =VLOOKUP(B5,'CDM Target By LDC'!B2:D83,3,0)*1000000 -> 82370000
B9: kW | C9: =VLOOKUP(B5,'CDM Target By LDC'!B2:D83,2,0)*1000 -> 21950

Sheet Load Forecast
B2: Load Forecast
B3: =Admin!B5 -> Burlington Hydro Inc.
B5: Customers or Connections
B7: Customer Class Name | C7: 2010 Board Appr | D7: 2010 Actual | E7: 2011 Actual | F7: 2012 Actual | G7: 2012 Actual Normalized | H7: Bridge Year 2013 Normalized | I7: Test Year 2014 Normalized
B8: Residential | C8: 57218 | D8: 57917 | E8: 58488 | F8: 59068 | H8: 59375 | I8: 59869
B9: General Service < 50 kW | C9: 4942 | D9: 4988 | E9: 5091 | F9: 5138 | H9: 5164 | I9: 5224
B10: General Service > 50 to 4999 kW | C10: 976 | D10: 996 | E10: 987 | F10: 998 | H10: 1008 | I10: 1012
B11: Unmetered Scattered Load | C11: 602 | D11: 604 | E11: 604 | F11: 605 | H11: 605 | I11: 605
B12: Street Lighting | C12: 14457 | D12: 14652 | E12: 15024 | F12: 15083 | H12: 15114 | I12: 15272
B13: TOTAL | C13: 78195 | D13: 79157 | E13: 80194 | F13: 80892 | H13: 81266 | I13: 81982
B15: Metered kWh
B17: Customer Class Name | C17: 2010 Board Appr | D17: 2010 Actual | E17: 2011 Actual | F17: 2012 Actual | G17: 2012 Actual Normalized | H17: Bridge Year 2013 Normalized | I17: Test Year 2014 Normalized
B18: Residential | C18: 523950900 | D18: 556896336 | E18: 551353006 | F18: 551839571 | H18: 536784300 | I18: 555449406.5
B19: General Service < 50 kW | C19: 172363092 | D19: 172200325 | E19: 174484065 | F19: 174704767 | H19: 174841485 | I19: 174342370.3
B20: General Service > 50 to 4999 kW | C20: 879095420 | D20: 906197008 | E20: 908229110 | F20: 903337846 | H20: 895328520 | I20: 899894473.1
B21: Unmetered Scattered Load | C21: 3487625 | D21: 3512551 | E21: 3296779 | F21: 3353868 | H21: 3160882 | I21: 3160882
B22: Street Lighting | C22: 9391179 | D22: 9467387 | E22: 9847280 | F22: 9866380 | H22: 10886911 | I22: 11000298.74
B23: TOTAL | C23: 1588288216 | D23: 1648273607 | E23: 1647210240 | F23: 1643102432 | G23: 0 | H23: 1621002098 | I23: 1643847431
B25: Metered kWh (CDM Adjusted)
B27: Customer Class Name | C27: 2010 Board Appr | D27: 2010 Actual | E27: 2011 Actual | F27: 2012 Actual | G27: 2012 Actual Normalized | H27: Bridge Year 2013 Normalized | I27: Test Year 2014 Normalized
B28: Residential | D28: 556896336 | E28: 551353006 | F28: 551839571 | H28: 553523828 | I28: 553858289.4
B29: General Service < 50 kW | D29: 172200325 | E29: 174484065 | F29: 174704767 | H29: 173805678 | I29: 173842956.4
B30: General Service > 50 to 4999 kW | D30: 906197008 | E30: 908229110 | F30: 903337846 | H30: 897955770 | I30: 897316673
B31: Unmetered Scattered Load | D31: 3512551 | E31: 3296779 | F31: 3353868 | H31: 3353868 | I31: 3151827.47
B32: Street Lighting | D32: 9467387 | E32: 9847280 | F32: 9866380 | H32: 10006706 | I32: 10968787.74
B33: TOTAL | C33: 0 | D33: 1648273607 | E33: 1647210240 | F33: 1643102432 | G33: 0 | H33: 1638645850 | I33: 1639138534
B36: kW
B38: Customer Class Name | C38: 2010 Board Appr | D38: 2010 Actual | E38: 2011 Actual | F38: 2012 Actual | G38: 2012 Actual Normalized | H38: Bridge Year 2013 Normalized | I38: Test Year 2014 Normalized
B39: Residential
B40: General Service < 50 kW
B41: General Service > 50 to 4999 kW | C41: 2353210 | D41: 2403006 | E41: 2396756 | F41: 2423043 | H41: 2421009.904 | I41: 2421009.904
B42: Unmetered Scattered Load
B43: Street Lighting | C43: 25861 | D43: 26416 | E43: 27334 | F43: 27457 | H43: 27825 | I43: 30612.56534
B44: TOTAL | C44: 2379071 | D44: 2429422 | E44: 2424090 | F44: 2450500 | G44: 0 | H44: 2448834.904 | I44: 2451622.47
B46: kW CDM Adjusted
B48: Customer Class Name | C48: 2010 Board Appr | D48: 2010 Actual | E48: 2011 Actual | F48: 2012 Actual | G48: 2012 Actual Normalized | H48: Bridge Year 2013 Normalized | I48: Test Year 2014 Normalized
B49: Residential | C49: 0 | D49: 0 | E49: 0 | F49: 0 | H49: 0
B50: General Service < 50 kW | C50: 0 | D50: 0 | E50: 0 | F50: 0 | H50: 0
B51: General Service > 50 to 4999 kW | C51: 2353210 | D51: 2403006 | E51: 2396756 | F51: 2423043 | H51: 2421009.904 | I51: 2414075.122
B52: Unmetered Scattered Load | C52: 0 | D52: 0 | E52: 0 | F52: 0 | H52: 0
B53: Street Lighting | C53: 25861 | D53: 26416 | E53: 27334 | F53: 27457 | H53: 27825 | I53: 30524.87818
B54: TOTAL | C54: 2379071 | D54: 2429422 | E54: 2424090 | F54: 2450500 | G54: 0 | H54: 2448834.904 | I54: 2444600
B56: Primary Metering Adjustment | C56: 0.99
B57: Customer Class Name | C57: Proposed Loss Factor
B58: Residential | C58: 1.037300017
B59: General Service < 50 kW | C59: 1.037300017
B60: General Service > 50 to 4999 kW | C60: 1.037300017
B61: Unmetered Scattered Load | C61: 1.037300017
B62: Street Lighting | C62: 1.037300017

Sheet OPA Results
A2: Post 2010 OPA Final Results
A3: =Admin!B5 -> Burlington Hydro Inc.
A5: Source: 2011 OPA Final Report | B5: 2011 | C5: 2012 | D5: 2013 | E5: 2014 | F5: Total
A7: 2011 Final kWh - Net | B7: ='[1]3.1.1 Summary - LDC'!$B$21*1000000 -> 7350137.627 | C7: ='[1]3.1.1 Summary - LDC'!$C$21*1000000 -> 7301303.077 | D7: ='[1]3.1.1 Summary - LDC'!$D$21*1000000 -> 7301303.077 | E7: ='[1]3.1.1 Summary - LDC'!$E$21*1000000 -> 7238674.341 | F7: =SUM(B7:E7) -> 29191418.12
A9: 2011 Final kW - Net | B9: ='[1]3.1.1 Summary - LDC'!$B$7*1000 -> 2932.350007 | C9: ='[1]3.1.1 Summary - LDC'!$C$7*1000 -> 1768.515507 | D9: ='[1]3.1.1 Summary - LDC'!$D$7* 1000 -> 1768.515507 | E9: ='[1]3.1.1 Summary - LDC'!$E$7*1000 -> 1744.91735
A11: Source: 2012 OPA Final Report * | B11: 2011 | C11: 2012 | D11: 2013 | E11: 2014
A13: 2012 Final kWh - Net | B13: 0 | C13: 8414807 | D13: =8414807-46660 -> 8368147 | E13: =8414807-46660-225899 -> 8142248 | F13: =SUM(B13:E13) -> 24925202
A15: 2012 Final kW - Net | B15: 0 | C15: 4739 | D15: 1947 | E15: =1947-74 -> 1873
A17: * Currently estimated using 2012 OPA Final Report values - Final Verified Results

Sheet CDM Target
B2: Calculate proportionate CDM savings required to achieve CDMTarget
B3: =Admin!B5 -> Burlington Hydro Inc.
B4: Schedule to achieve 4 Year kWH CDM Target
B5: 4 Year 2011 - 2014 kWh CDM Target
B6: =Admin!C8 -> 82370000
B7: % | C7: 2011 | D7: 2012 | E7: 2013 | F7: 2014 | G7: Total
B8: 2011 Programs | C8: =C15/$G$19 -> 0.08923318717 | D8: =D15/$G$19 -> 0.08864031901 | E8: =E15/$G$19 -> 0.08864031901 | F8: =F15/$G$19 -> 0.08787998471 | G8: =SUM(C8:F8) -> 0.3543938099
B9: 2012 Programs | D9: =D16/$G$19 -> 0.1021586379 | E9: =E16/$G$19 -> 0.1015921695 | F9: =F16/$G$19 -> 0.09884967828 | G9: =SUM(C9:F9) -> 0.3026004856
B10: 2013 Programs | E10: =E17/$G$19 -> 0.1143352348 | F10: =F17/$G$19 -> 0.1143352348 | G10: 0.2286704697
B11: 2014 Programs | F11: =F18/$G$19 -> 0.1143352348 | G11: 0.1143352348
C12: =SUM(C8:C11) -> 0.08923318717 | D12: =SUM(D8:D11) -> 0.1907989569 | E12: 0.3045677233 | F12: 0.4154001327 | G12: 1
B14: kWh | C14: 2011 | D14: 2012 | E14: 2013 | F14: 2014 | G14: Total
B15: 2011 Programs | C15: ='OPA Results'!B7 -> 7350137.627 | D15: ='OPA Results'!C7 -> 7301303.077 | E15: ='OPA Results'!D7 -> 7301303.077 | F15: ='OPA Results'!E7 -> 7238674.341 | G15: =SUM(C15:F15) -> 29191418.12
B16: 2012 Programs | D16: ='OPA Results'!C13 -> 8414807 | E16: ='OPA Results'!D13 -> 8368147 | F16: ='OPA Results'!E13 -> 8142248 | G16: =SUM(C16:F16) -> 24925202
B17: 2013 Programs | E17: =($G$20-$G$15-$G$16)/3 -> 9417793.293 | F17: =($G$20-$G$15-$G$16)/3 -> 9417793.293 | G17: =SUM(C17:F17) -> 18835586.59
B18: 2014 Programs | F18: =($G$20-$G$15-$G$16)/3 -> 9417793.293 | G18: 9417793.293
C19: =SUM(C15:C18) -> 7350137.627 | D19: =SUM(D15:D18) -> 15716110.08 | E19: 25087243.37 | F19: 34216508.93 | G19: 82370000
G20: =B6 -> 82370000
B22: Schedule to achieve 4 Year kW CDM Target
B23: 4 Year 2011 - 2014 kW CDM Target
B24: =Admin!C9 -> 21950
B25: % | C25: 2011 | D25: 2012 | E25: 2013 | F25: 2014 | G25: Total
B26: 2011 Programs | C26: =C33/$G$37 -> 0.1335922554 | D26: =D33/$G$37 -> 0.08057018255 | E26: 0.08057018255 | F26: 0.07949509566 | G26: =SUM(C26:F26) -> 0.3742277162
B27: 2012 Programs | D27: 0.2158997722 | E27: 0.08870159453 | F27: 0.08533029613 | G27: =SUM(C27:F27) -> 0.3899316629
B28: 2013 Programs | E28: 0.07861354031 | F28: 0.07861354031 | G28: 0.1572270806
B29: 2014 Programs | F29: 0.07861354031 | G29: 0.07861354031
C30: =SUM(C26:C29) -> 0.1335922554 | D30: =SUM(D26:D29) -> 0.2964699548 | E30: 0.2478853174 | F30: 0.3220524724 | G30: 1
B32: kWh | C32: 2011 | D32: 2012 | E32: 2013 | F32: 2014 | G32: Total
B33: 2011 Programs | C33: ='OPA Results'!B9 -> 2932.350007 | D33: ='OPA Results'!C9 -> 1768.515507 | E33: ='OPA Results'!D9 -> 1768.515507 | F33: ='OPA Results'!E9 -> 1744.91735 | G33: =SUM(C33:F33) -> 8214.29837
B34: 2012 Programs | D34: ='OPA Results'!C15 -> 4739 | E34: ='OPA Results'!D15 -> 1947 | F34: ='OPA Results'!E15 -> 1873 | G34: =SUM(C34:F34) -> 8559
B35: 2013 Programs | E35: =($G$38-$G$33-$G$34)/3 -> 1725.56721 | F35: =($G$38-$G$33-$G$34)/3 -> 1725.56721 | G35: =SUM(C35:F35) -> 3451.13442
B36: 2014 Programs | F36: =($G$38-$G$33-$G$34)/3 -> 1725.56721 | G36: =SUM(C36:F36) -> 1725.56721
C37: =SUM(C33:C36) -> 2932.350007 | D37: =SUM(D33:D36) -> 6507.515507 | E37: 5441.082717 | F37: 7069.051769 | G37: =SUM(C37:F37) -> 21950
G38: =B24 -> 21950

Sheet OPA Total Results (hidden)
A1: Summary of OPA Final Results 2006 to 2012
A2: =Admin!B5 & " (kWh)" -> Burlington Hydro Inc. (kWh)
B3: 2006 - 2010 Gross kWh | C3: 2011 Gross kWh | D3: 2012 Gross kWh | E3: Total Gross kWh | G3: 2006 - 2010 Net kWh | H3: 2011 Net kWh | I3: 2012 Net kWh | J3: Total Net kWh | L3: 2006 - 2010 Gross - Net | M3: 2011 Gross - Net | N3: 2012 Gross - Net | O3: Total Gross - Net | Q3: 2006 - 2010 | R3: 2011 | S3: 2012 | T3: Total
A4: 2006 | B4: ='[2]Initiative Level - LDC'!$G$331*1000 -> 5771014.081 | E4: =SUM(B4:D4) -> 5771014.081 | G4: ='[2]Initiative Level - LDC'!$G$167*1000 -> 5167438.277 | J4: =SUM(G4:I4) -> 5167438.277 | L4: =B4-G4 -> 603575.8042 | O4: =SUM(L4:N4) -> 603575.8042 | Q4: =L4/G4 -> 0.1168036795 | R4: 0 | T4: =O4/J4 -> 0.1168036795
A5: 2007 | B5: ='[2]Initiative Level - LDC'!$H$331*1000 -> 27552093.4 | E5: =SUM(B5:D5) -> 27552093.4 | G5: ='[2]Initiative Level - LDC'!$H$167*1000 -> 9935709.405 | J5: =SUM(G5:I5) -> 9935709.405 | L5: 17616384 | O5: =SUM(L5:N5) -> 17616384 | Q5: =L5/G5 -> 1.773037362 | R5: 0 | T5: 1.773037362
A6: 2008 | B6: ='[2]Initiative Level - LDC'!$I$331*1000 -> 19658220.49 | E6: 19658220.49 | G6: ='[2]Initiative Level - LDC'!$I$167*1000 -> 11642922.27 | J6: 11642922.27 | L6: 8015298.223 | O6: 8015298.223 | Q6: 0.6884266715 | R6: 0 | T6: 0.6884266715
A7: 2009 | B7: ='[2]Initiative Level - LDC'!$J$331*1000 -> 28861543.72 | E7: 28861543.72 | G7: ='[2]Initiative Level - LDC'!$J$167*1000 -> 19516778.47 | J7: 19516778.47 | L7: 9344765.256 | O7: 9344765.256 | Q7: 0.4788067494 | R7: 0 | T7: 0.4788067494
A8: 2010 | B8: ='[2]Initiative Level - LDC'!$K$331*1000 -> 33971532.12 | E8: 33971532.12 | G8: ='[2]Initiative Level - LDC'!$K$167*1000 -> 21547449.39 | J8: 21547449.39 | L8: 12424082.72 | O8: 12424082.72 | Q8: 0.5765918043 | R8: 0 | T8: 0.5765918043
A9: 2011 | B9: ='[2]Initiative Level - LDC'!$L$331*1000 -> 31877404.28 | C9: ='[1]2.5.2 Results - LDC'!$G$11 -> 11420082.57 | E9: 43297486.84 | G9: ='[2]Initiative Level - LDC'!$L$167*1000 -> 19422234.96 | H9: ='[1]3.1.1 Summary - LDC'!$B$21*1000000 -> 7350137.627 | J9: 26772372.58 | L9: 12455169.32 | M9: =C9-H9 -> 4069944.941 | O9: 16525114.26 | Q9: =L9/G9 -> 0.6412840411 | R9: 0.5537236372 | T9: =O9/J9 -> 0.6172450428
A10: 2012 | B10: ='[2]Initiative Level - LDC'!$M$331*1000 -> 30741594.18 | C10: =[1]Sheet1!$C$73 -> 11371248.02 | D10: =C9 -> 11420082.57 | E10: 53532924.77 | G10: ='[2]Initiative Level - LDC'!$M$167*1000 -> 18853327.97 | H10: ='[1]3.1.1 Summary - LDC'!$C$21*1000000 -> 7301303.077 | I10: =H9 -> 7350137.627 | J10: 33504768.68 | L10: 11888266.21 | M10: =C10-H10 -> 4069944.941 | N10: =D10-I10 -> 4069944.941 | O10: 20028156.09 | Q10: 0.630565926 | R10: 0.5574272014 | S10: =N10/I10 -> 0.5537236372 | T10: 0.597770314
A11: 2013 | B11: ='[2]Initiative Level - LDC'!$N$331*1000 -> 30453612.07 | C11: =[1]Sheet1!$D$73 -> 11371248.02 | D11: =C10 -> 11371248.02 | E11: 53196108.1 | G11: ='[2]Initiative Level - LDC'!$N$167*1000 -> 18705307.67 | H11: ='[1]3.1.1 Summary - LDC'!$D$21*1000000 -> 7301303.077 | I11: =H10 -> 7301303.077 | J11: 33307913.82 | L11: 11748304.4 | M11: =C11-H11 -> 4069944.941 | N11: =D11-I11 -> 4069944.941 | O11: 19888194.28 | Q11: 0.6280733044 | R11: 0.5574272014 | S11: =N11/I11 -> 0.5574272014 | T11: 0.5971011689
A12: 2014 | B12: ='[2]Initiative Level - LDC'!$O$331*1000 -> 28811951.52 | C12: =[1]Sheet1!$E$73 -> 11371248.02 | D12: 11371248.02 | E12: 51554447.55 | G12: ='[2]Initiative Level - LDC'!$O$167*1000 -> 17865939.84 | H12: ='[1]3.1.1 Summary - LDC'!$E$21*1000000 -> 7238674.341 | I12: 7301303.077 | J12: 32405917.26 | L12: 10946011.68 | M12: =C12-H12 -> 4132573.677 | N12: 4069944.941 | O12: 19148530.3 | Q12: 0.6126748314 | R12: 0.5709020025 | S12: =N12/I12 -> 0.5574272014 | T12: 0.5908961053
B15: 2006 - 2010 Gross kW | C15: 2011 Gross kW | D15: 2012 Gross kW | E15: Total Gross kW | G15: 2006 - 2010 Net kW | H15: 2011 Net kW | I15: 2012 Net kW | J15: Total Net kW | L15: 2006 - 2010 Gross - Net | M15: 2011 Gross - Net | N15: 2012 Gross - Net | O15: Total Gross - Net | Q15: 2006 - 2010 | R15: 2011 | S15: 2012 | T15: Total
A16: 2006 | B16: ='[2]Initiative Level - LDC'!$G$249*1000 -> 4513.217258 | E16: =SUM(B16:D16) -> 4513.217258 | G16: ='[2]Initiative Level - LDC'!$G$85*1000 -> 4467.063223 | J16: =SUM(G16:I16) -> 4467.063223 | L16: =B16-G16 -> 46.15403475 | O16: =SUM(L16:N16) -> 46.15403475 | Q16: =L16/G16 -> 0.01033207556 | R16: 0 | S16: 0 | T16: =O16/J16 -> 0.01033207556
A17: 2007 | B17: ='[2]Initiative Level - LDC'!$H$249*1000 -> 16038.97106 | E17: =SUM(B17:D17) -> 16038.97106 | G17: ='[2]Initiative Level - LDC'!$H$85*1000 -> 6860.286858 | J17: =SUM(G17:I17) -> 6860.286858 | L17: 9178.684198 | O17: =SUM(L17:N17) -> 9178.684198 | Q17: =L17/G17 -> 1.337944664 | R17: 0 | S17: 0 | T17: 1.337944664
A18: 2008 | B18: ='[2]Initiative Level - LDC'!$I$249*1000 -> 14892.97384 | E18: 14892.97384 | G18: ='[2]Initiative Level - LDC'!$I$85*1000 -> 11306.95873 | J18: 11306.95873 | L18: 3586.015111 | O18: 3586.015111 | Q18: 0.3171511629 | R18: 0 | S18: 0 | T18: 0.3171511629
A19: 2009 | B19: ='[2]Initiative Level - LDC'!$J$249*1000 -> 15396.12991 | E19: 15396.12991 | G19: ='[2]Initiative Level - LDC'!$J$85*1000 -> 12436.18164 | J19: 12436.18164 | L19: 2959.948269 | O19: 2959.948269 | Q19: 0.2380110194 | R19: 0 | S19: 0 | T19: 0.2380110194
A20: 2010 | B20: ='[2]Initiative Level - LDC'!$K$249*1000 -> 17173.20347 | E20: 17173.20347 | G20: ='[2]Initiative Level - LDC'!$K$85*1000 -> 13055.06183 | J20: 13055.06183 | L20: 4118.141641 | O20: 4118.141641 | Q20: 0.3154440549 | R20: 0 | S20: 0 | T20: 0.3154440549
A21: 2011 | B21: ='[2]Initiative Level - LDC'!$L$249*1000 -> 11362.17608 | C21: ='[1]2.5.2 Results - LDC'!$F$11 -> 4124.897113 | E21: 15487.07319 | G21: ='[2]Initiative Level - LDC'!$L$85*1000 -> 7244.221521 | H21: ='[1]3.1.1 Summary - LDC'!$B$7*1000 -> 2932.350007 | J21: 10176.57153 | L21: 4117.954558 | M21: =C21-H21 -> 1192.547106 | O21: 5310.501665 | Q21: 0.5684468023 | R21: =M21/H21 -> 0.4066864812 | S21: 0 | T21: 0.521836028
A22: 2012 | B22: ='[2]Initiative Level - LDC'!$M$249*1000 -> 11155.23015 | C22: =[1]Sheet1!$C$36 -> 2808.697113 | D22: =C21 -> 4124.897113 | E22: 18088.82438 | G22: ='[2]Initiative Level - LDC'!$M$85*1000 -> 7142.662048 | H22: ='[1]3.1.1 Summary - LDC'!$C$7*1000 -> 1768.515507 | I22: =H21 -> 2932.350007 | J22: 11843.52756 | L22: 4012.568103 | M22: =C22-H22 -> 1040.181606 | N22: =D22-I22 -> 1192.547106 | O22: 6245.296816 | Q22: 0.5617748784 | R22: =M22/H22 -> 0.5881665171 | S22: =N22/I22 -> 0.4066864812 | T22: 0.5273172864
A23: 2013 | B23: ='[2]Initiative Level - LDC'!$N$249*1000 -> 11108.01349 | C23: =[1]Sheet1!$D$36 -> 2808.697113 | D23: =C22 -> 2808.697113 | E23: 16725.40771 | G23: ='[2]Initiative Level - LDC'!$N$85*1000 -> 7119.60772 | H23: ='[1]3.1.1 Summary - LDC'!$D$7* 1000 -> 1768.515507 | I23: =H22 -> 1768.515507 | J23: 10656.63873 | L23: 3988.405767 | M23: =C23-H23 -> 1040.181606 | N23: =D23-I23 -> 1040.181606 | O23: 6068.768979 | Q23: 0.5602002137 | R23: =M23/H23 -> 0.5881665171 | S23: =N23/I23 -> 0.5881665171 | T23: 0.5694824729
A24: 2014 | B24: ='[2]Initiative Level - LDC'!$O$249*1000 -> 10869.40133 | C24: =[1]Sheet1!$E$36 -> 2808.697113 | D24: 2808.697113 | E24: 16486.79556 | G24: ='[2]Initiative Level - LDC'!$O$85*1000 -> 6976.510411 | H24: ='[1]3.1.1 Summary - LDC'!$E$7*1000 -> 1744.91735 | I24: 1768.515507 | J24: 10489.94327 | L24: =B24-G24 -> 3892.890921 | M24: =C24-H24 -> 1063.779763 | N24: 1040.181606 | O24: 5996.852291 | Q24: =L24/G24 -> 0.5579997294 | R24: =M24/H24 -> 0.6096447855 | S24: 0.5881665171 | T24: 0.5716763321

Sheet Net To Gross Calculation (hidden)
B1: NET to GROSS Calculation
B2: =Admin!B5 & " (kWh)" -> Burlington Hydro Inc. (kWh)
B3: Year | C3: OPA 2006-2012 Final CDM Results (Gross) | D3: OPA 2006-2012 Final CDM Results (Net) | E3: Difference | F3: % Difference of Net
C4: (a) | D4: (b) | E4: (c) = (a) – (b) | F4: (d) = (c) / (b)
B5: 2006 | C5: ='OPA Total Results'!E4 -> 5771014.081 | D5: ='OPA Total Results'!J4 -> 5167438.277 | E5: =C5-D5 -> 603575.8042 | F5: =E5/D5 -> 0.1168036795
B6: 2007 | C6: ='OPA Total Results'!E5 -> 27552093.4 | D6: ='OPA Total Results'!J5 -> 9935709.405 | E6: =C6-D6 -> 17616384 | F6: =E6/D6 -> 1.773037362
B7: 2008 | C7: ='OPA Total Results'!E6 -> 19658220.49 | D7: ='OPA Total Results'!J6 -> 11642922.27 | E7: 8015298.223 | F7: 0.6884266715
B8: 2009 | C8: ='OPA Total Results'!E7 -> 28861543.72 | D8: ='OPA Total Results'!J7 -> 19516778.47 | E8: 9344765.256 | F8: 0.4788067494
B9: 2010 | C9: ='OPA Total Results'!E8 -> 33971532.12 | D9: ='OPA Total Results'!J8 -> 21547449.39 | E9: 12424082.72 | F9: 0.5765918043
B10: 2011 | C10: ='OPA Total Results'!E9 -> 43297486.84 | D10: ='OPA Total Results'!J9 -> 26772372.58 | E10: 16525114.26 | F10: 0.6172450428
B11: 2012 | C11: ='OPA Total Results'!E10 -> 53532924.77 | D11: ='OPA Total Results'!J10 -> 33504768.68 | E11: 20028156.09 | F11: 0.597770314
B12: 2013 | C12: ='OPA Total Results'!E11 -> 53196108.1 | D12: ='OPA Total Results'!J11 -> 33307913.82 | E12: 19888194.28 | F12: 0.5971011689
B13: 2014 | C13: ='OPA Total Results'!E12 -> 51554447.55 | D13: ='OPA Total Results'!J12 -> 32405917.26 | E13: =C13-D13 -> 19148530.3 | F13: =E13/D13 -> 0.5908961053
B15: =Admin!B5 & " (kW)" -> Burlington Hydro Inc. (kW)
B16: Year | C16: OPA 2006-2011 Final CDM Results (Gross) | D16: OPA 2006-2011 Final CDM Results (Net) | E16: Difference | F16: % Difference of Net
C17: (a) | D17: (b) | E17: (c) = (a) – (b) | F17: (d) = (c) / (b)
B18: 2006 | C18: ='OPA Total Results'!E16 -> 4513.217258 | D18: ='OPA Total Results'!J16 -> 4467.063223 | E18: =C18-D18 -> 46.15403475 | F18: =E18/D18 -> 0.01033207556
B19: 2007 | C19: ='OPA Total Results'!E17 -> 16038.97106 | D19: ='OPA Total Results'!J17 -> 6860.286858 | E19: =C19-D19 -> 9178.684198 | F19: =E19/D19 -> 1.337944664
B20: 2008 | C20: ='OPA Total Results'!E18 -> 14892.97384 | D20: ='OPA Total Results'!J18 -> 11306.95873 | E20: 3586.015111 | F20: 0.3171511629
B21: 2009 | C21: ='OPA Total Results'!E19 -> 15396.12991 | D21: ='OPA Total Results'!J19 -> 12436.18164 | E21: 2959.948269 | F21: 0.2380110194
B22: 2010 | C22: ='OPA Total Results'!E20 -> 17173.20347 | D22: ='OPA Total Results'!J20 -> 13055.06183 | E22: 4118.141641 | F22: 0.3154440549
B23: 2011 | C23: ='OPA Total Results'!E21 -> 15487.07319 | D23: ='OPA Total Results'!J21 -> 10176.57153 | E23: 5310.501665 | F23: 0.521836028
B24: 2012 | C24: ='OPA Total Results'!E22 -> 18088.82438 | D24: ='OPA Total Results'!J22 -> 11843.52756 | E24: 6245.296816 | F24: 0.5273172864
B25: 2013 | C25: ='OPA Total Results'!E23 -> 16725.40771 | D25: ='OPA Total Results'!J23 -> 10656.63873 | E25: 6068.768979 | F25: 0.5694824729
B26: 2014 | C26: ='OPA Total Results'!E24 -> 16486.79556 | D26: ='OPA Total Results'!J24 -> 10489.94327 | E26: =C26-D26 -> 5996.852291 | F26: =E26/D26 -> 0.5716763321

Sheet Load Forecast Adjustment
B2: Load Forecast Adjustment Calculation
B3: =Admin!B5 -> Burlington Hydro Inc.
C5: 2014 CDM Threshold (kWh of incremental CDM savings needed in 2014) | D5: Application Factor 1.0 Full Year 0.5 Half Year | E5: 2014 Net kWh Load Forecast CDM Adjustment | F5: 2014 Net to Gross Adjustment | G5: 2014 Load Forecast CDM Adjustment
C6: A | D6: B | E6: C = A * B | F6: D | G6: E = C * (1 + D)
B7: Year
B8: 2011 | C8: ='CDM Target'!F15 -> 7238674.341 | D8: 0 | E8: =C8*D8 -> 0 | F8: ='Net To Gross Calculation'!F13 -> 0.5908961053 | G8: =E8*(1+F8) -> 0
B9: 2012 | C9: ='CDM Target'!F16 -> 8142248 | D9: 0 | E9: =C9*D9 -> 0 | F9: =F8 -> 0.5908961053 | G9: =E9*(1+F9) -> 0
B10: 2013 | C10: ='CDM Target'!F17 -> 9417793.293 | D10: 0 | E10: 0 | F10: =F9 -> 0.5908961053 | G10: 0
B11: 2014 | C11: ='CDM Target'!F18 -> 9417793.293 | D11: 0.5 | E11: 4708896.646 | F11: =F10 -> 0.5908961053 | G11: 7491365.335
C12: =SUM(C8:C11) -> 34216508.93 | E12: =SUM(E8:E11) -> 4708896.646 | G12: =SUM(G8:G11) -> 7491365.335
C15: 2014 CDM Threshold (kWh of incremental CDM savings needed in 2014) | D15: Application Factor 1.0 Full Year 0.5 Half Year | E15: 2014 Net kW Load Forecast CDM Adjustment | F15: 2014 Net to Gross Adjustment | G15: 2014 Load Forecast CDM Adjustment
C16: A | D16: B | E16: C = A * B | F16: D | G16: E = C * (1 + D)
B17: Year
B18: 2011 | C18: ='CDM Target'!F33 -> 1744.91735 | D18: 0 | E18: =C18*D18 -> 0 | F18: ='Net To Gross Calculation'!F26 -> 0.5716763321 | G18: =E18*(1+F18) -> 0
B19: 2012 | C19: ='CDM Target'!F34 -> 1873 | D19: 0 | E19: =C19*D19 -> 0 | F19: =F18 -> 0.5716763321 | G19: =E19*(1+F19) -> 0
B20: 2013 | C20: ='CDM Target'!F35 -> 1725.56721 | D20: 0 | E20: 0 | F20: =F19 -> 0.5716763321 | G20: 0
B21: 2014 | C21: ='CDM Target'!F36 -> 1725.56721 | D21: 0.5 | E21: 862.7836049 | F21: =F20 -> 0.5716763321 | G21: 1356.016572
C22: =SUM(C18:C21) -> 7069.051769 | E22: =SUM(E18:E21) -> 862.7836049 | G22: =SUM(G18:G21) -> 1356.016572

Sheet Adjustment To Load Forecast
B1: Adjustment To Load Forecast
B2: =Admin!B5 -> Burlington Hydro Inc.
C3: Weather Normalized | E3: CDM Load Forecast Adjustment | G3: 2014 CDM Adjusted Load Forecast
B4: Retail | C4: 2014F
B5: kWh | C5: (Elenchus)
C6: Source: Clarifying Question 7
C7: A | D7: C = A / B | E7: E = D * C | G7: F = A - E
B8: Residential (kWh) | C8: 555449406.5 | D8: =C8/$C$13 -> 0.3378959605 | E8: =$E$13*D8 -> 1591117.155 | G8: =C8-E8 -> 553858289.4
B9: GS<50 (kWh) | C9: 174342370.3 | D9: 0.106057513 | E9: =$E$13*D9 -> 499413.8674 | G9: =C9-E9 -> 173842956.4
B10: GS>50 (kW) | C10: 899894473.1 | D10: 0.5474318701 | E10: =$E$13*D10 -> 2577800.097 | G10: 897316673
B11: Street Lights (kW) | C11: 11000298.74 | D11: 0.006691800303 | E11: =$E$13*D11 -> 31510.99601 | G11: 10968787.74
B12: USL (kWh) | C12: 3160882 | D12: 0.001922856064 | E12: =$E$13*D12 -> 9054.53047 | G12: 3151827.47
B13: Total Customer (kWh) | C13: =SUM(C8:C12) -> 1643847431 | D13: 1 | E13: ='Load Forecast Adjustment'!E12 -> 4708896.646 | G13: =SUM(G8:G12) -> 1639138534 | H13: =G13/C13-1 -> -0.002864558206
C14: B | E14: D
C16: Weather Normalized | E16: CDM Load Forecast Adjustment * | G16: 2014 CDM Adjusted Load Forecast
C17: 2014F
B18: kW | C18: (Elenchus)
C19: Source: Exhibit 10, Tab 1, Schedule 126
C20: G | D20: I = G / H | E20: J = G / A * E | G20: K = G - J
B21: Residential (kWh) | C21: 0 | D21: =C21/$C$26 -> 0 | G21: =C21-E21 -> 0
B22: GS<50 (kWh) | C22: 0 | D22: 0 | G22: =C22-E22 -> 0
B23: GS>50 (kW) | C23: 2458215 | D23: 0.9877000055 | E23: =C23/C10*E10 -> 7041.69995 | G23: 2451173.3
B24: Street Lights (kW) | C24: 30612.56534 | D24: 0.01229999449 | E24: =C24/C11*E11 -> 87.69147523 | G24: 30524.87386
B25: USL (kWh) | C25: 0 | D25: 0 | G25: 0
B26: Total Customer (kWh) | C26: =SUM(C21:C25) -> 2488827.565 | D26: 1 | E26: =SUM(E21:E25) -> 7129.391425 | G26: =SUM(G21:G25) -> 2481698.174 | H26: =G26/C26-1 -> -0.002864558206
C27: H
B28: * Note that CDM LF kW is the proportional LF kW over LF kWh times kWH CDM LF adjustment.

Sheet LRAMVA Allocation
B1: LRAMVA Allocation
B2: =Admin!B5 -> Burlington Hydro Inc.
C3: Weather Normalized | E3: LRAMVA (kWh)
C4: 2014F
B5: kWh | C5: (Elenchus)
C6: A | D6: C = A / B | E6: E = D * C
B7: Residential (kWh) | C7: ='Adjustment To Load Forecast'!C8 -> 555449406.5 | D7: =C7/$C$12 -> 0.3378959605 | E7: =$E$12*D7 -> 11561620.15
B8: GS<50 (kWh) | C8: ='Adjustment To Load Forecast'!C9 -> 174342370.3 | D8: 0.106057513 | E8: =$E$12*D8 -> 3628917.841
B9: GS>50 (kW) | C9: ='Adjustment To Load Forecast'!C10 -> 899894473.1 | D9: 0.5474318701 | E9: =$E$12*D9 -> 18731207.47
B10: Street Lights (kW) | C10: ='Adjustment To Load Forecast'!C11 -> 11000298.74 | D10: 0.006691800303 | E10: =$E$12*D10 -> 228970.0448
B11: USL (kWh) | C11: ='Adjustment To Load Forecast'!C12 -> 3160882 | D11: 0.001922856064 | E11: =$E$12*D11 -> 65793.42167
B12: Total Customer (kWh) | C12: =SUM(C7:C11) -> 1643847431 | D12: 1 | E12: ='Load Forecast Adjustment'!C12 -> 34216508.93
C13: B | E13: D
C15: Weather Normalized | E15: Calculated (kW) | G15: LRAMVA (kW) *
C16: 2014F
B17: kW | C17: (Elenchus)
C18: F | D18: H = F / G | E18: I = F / A * E | G18: K = J * H
B19: Residential (kWh) | C19: ='Adjustment To Load Forecast'!C21 -> 0 | D19: =C19/$C$24 -> 0
B20: GS<50 (kWh) | C20: ='Adjustment To Load Forecast'!C22 -> 0 | D20: 0
B21: GS>50 (kW) | C21: ='Adjustment To Load Forecast'!C23 -> 2458215 | D21: 0.9877000055 | E21: =C21/C9*E9 -> 51167.48302 | G21: =$G$24*D21 -> 21680.01512
B22: Street Lights (kW) | C22: ='Adjustment To Load Forecast'!C24 -> 30612.56534 | D22: 0.01229999449 | E22: =C22/C10*E10 -> 637.1972821 | G22: =$G$24*D22 -> 269.984879
B23: USL (kWh) | C23: ='Adjustment To Load Forecast'!C25 -> 0 | D23: 0
B24: Total Customer (kWh) | C24: =SUM(C19:C23) -> 2488827.565 | D24: 1 | E24: =SUM(E19:E23) -> 51804.6803 | G24: =Admin!C9 -> 21950
C25: G | G25: J
B26: * As Calculated (kW) exceeds the 2014 kW target therefore LRAMVA is proposed to be the 2014 Target

Sheet CDM Target By LDC (hidden)
C1: Target | F1: 0.1 | G1: 0.1 | I1: 0.2 | J1: 0.2 | L1: 0.3 | M1: 0.3 | O1: 0.4 | P1: 0.4
B2: Distributor | C2: MW | D2: MWh | F2: MW | G2: MWh | I2: MW | J2: MWh | L2: MW | M2: MWh | O2: MW | P2: MWh
A3: 1 | B3: Algoma Power Inc. | C3: 1.28 | D3: 7.37 | F3: =$C3*F$1 -> 0.128 | G3: =$D3*G$1 -> 0.737 | I3: =$C3*I$1 -> 0.256 | J3: =$D3*J$1 -> 1.474 | L3: =$C3*L$1 -> 0.384 | M3: =$D3*M$1 -> 2.211 | O3: =$C3*O$1 -> 0.512 | P3: =$D3*P$1 -> 2.948
A4: 2 | B4: Atikokan Hydro Inc. | C4: 0.2 | D4: 1.16 | F4: =$C4*F$1 -> 0.02 | G4: =$D4*G$1 -> 0.116 | I4: =$C4*I$1 -> 0.04 | J4: =$D4*J$1 -> 0.232 | L4: =$C4*L$1 -> 0.06 | M4: =$D4*M$1 -> 0.348 | O4: =$C4*O$1 -> 0.08 | P4: =$D4*P$1 -> 0.464
A5: 3 | B5: Attawapiskat Power Corporation | C5: 0.07 | D5: 0.29 | F5: 0.007 | G5: 0.029 | I5: 0.014 | J5: 0.058 | L5: 0.021 | M5: 0.087 | O5: 0.028 | P5: 0.116
A6: 4 | B6: Bluewater Power Distribution Corporation | C6: 10.65 | D6: 53.73 | F6: 1.065 | G6: 5.373 | I6: 2.13 | J6: 10.746 | L6: 3.195 | M6: 16.119 | O6: 4.26 | P6: 21.492
A7: 5 | B7: Brant County Power Inc. | C7: 3.3 | D7: 9.85 | F7: 0.33 | G7: 0.985 | I7: 0.66 | J7: 1.97 | L7: 0.99 | M7: 2.955 | O7: 1.32 | P7: 3.94
A8: 6 | B8: Brantford Power Inc. | C8: 11.38 | D8: 48.92 | F8: 1.138 | G8: 4.892 | I8: 2.276 | J8: 9.784 | L8: 3.414 | M8: 14.676 | O8: 4.552 | P8: 19.568
A9: 7 | B9: Elenchus Hydro Inc. | C9: 21.95 | D9: 82.37 | F9: 2.195 | G9: 8.237 | I9: 4.39 | J9: 16.474 | L9: 6.585 | M9: 24.711 | O9: 8.78 | P9: 32.948
A10: 7 | B10: Burlington Hydro Inc. | C10: 21.95 | D10: 82.37 | F10: 2.195 | G10: 8.237 | I10: 4.39 | J10: 16.474 | L10: 6.585 | M10: 24.711 | O10: 8.78 | P10: 32.948
A11: 8 | B11: COLLUS Power Corporation | C11: 3.14 | D11: 14.97 | F11: 0.314 | G11: 1.497 | I11: 0.628 | J11: 2.994 | L11: 0.942 | M11: 4.491 | O11: 1.256 | P11: 5.988
A12: 9 | B12: Cambridge and North Dumfries Hydro Inc. | C12: 17.68 | D12: 73.66 | F12: 1.768 | G12: 7.366 | I12: 3.536 | J12: 14.732 | L12: 5.304 | M12: 22.098 | O12: 7.072 | P12: 29.464
A13: 10 | B13: Canadian Niagara Power Inc. | C13: 4.07 | D13: 15.81 | F13: 0.407 | G13: 1.581 | I13: 0.814 | J13: 3.162 | L13: 1.221 | M13: 4.743 | O13: 1.628 | P13: 6.324
A14: 11 | B14: Centre Wellington Hydro Ltd. | C14: 1.64 | D14: 7.81 | F14: 0.164 | G14: 0.781 | I14: 0.328 | J14: 1.562 | L14: 0.492 | M14: 2.343 | O14: 0.656 | P14: 3.124
A15: 12 | B15: Chapleau Public Utilities Corporation | C15: 0.17 | D15: 1.21 | F15: 0.017 | G15: 0.121 | I15: 0.034 | J15: 0.242 | L15: 0.051 | M15: 0.363 | O15: 0.068 | P15: 0.484
A16: 13 | B16: Chatham-Kent Hydro Inc. | C16: 9.67 | D16: 37.28 | F16: 0.967 | G16: 3.728 | I16: 1.934 | J16: 7.456 | L16: 2.901 | M16: 11.184 | O16: 3.868 | P16: 14.912
A17: 14 | B17: Clinton Power Corporation | C17: 0.32 | D17: 1.38 | F17: 0.032 | G17: 0.138 | I17: 0.064 | J17: 0.276 | L17: 0.096 | M17: 0.414 | O17: 0.128 | P17: 0.552
A18: 15 | B18: Cooperative Hydro Embrun Inc. | C18: 0.34 | D18: 1.12 | F18: 0.034 | G18: 0.112 | I18: 0.068 | J18: 0.224 | L18: 0.102 | M18: 0.336 | O18: 0.136 | P18: 0.448
A19: 16 | B19: E.L.K. Energy Inc. | C19: 2.69 | D19: 8.25 | F19: 0.269 | G19: 0.825 | I19: 0.538 | J19: 1.65 | L19: 0.807 | M19: 2.475 | O19: 1.076 | P19: 3.3
A20: 17 | B20: ENWIN Utilities Ltd. | C20: 26.81 | D20: 117.89 | F20: 2.681 | G20: 11.789 | I20: 5.362 | J20: 23.578 | L20: 8.043 | M20: 35.367 | O20: 10.724 | P20: 47.156
A21: 18 | B21: Enersource Hydro Mississauga Inc. | C21: 92.98 | D21: 417.22 | F21: 9.298 | G21: 41.722 | I21: 18.596 | J21: 83.444 | L21: 27.894 | M21: 125.166 | O21: 37.192 | P21: 166.888
A22: 19 | B22: Erie Thames Powerlines Corporation | C22: 4.28 | D22: 18.6 | F22: 0.428 | G22: 1.86 | I22: 0.856 | J22: 3.72 | L22: 1.284 | M22: 5.58 | O22: 1.712 | P22: 7.44
A23: 20 | B23: Espanola Regional Hydro Distribution Corporation | C23: 0.52 | D23: 2.76 | F23: 0.052 | G23: 0.276 | I23: 0.104 | J23: 0.552 | L23: 0.156 | M23: 0.828 | O23: 0.208 | P23: 1.104
A24: 21 | B24: Essex Powerlines Corporation | C24: 7.19 | D24: 21.54 | F24: 0.719 | G24: 2.154 | I24: 1.438 | J24: 4.308 | L24: 2.157 | M24: 6.462 | O24: 2.876 | P24: 8.616
A25: 22 | B25: Festival Hydro Inc. | C25: 6.23 | D25: 29.25 | F25: 0.623 | G25: 2.925 | I25: 1.246 | J25: 5.85 | L25: 1.869 | M25: 8.775 | O25: 2.492 | P25: 11.7
A26: 23 | B26: Fort Albany Power Corporation | C26: 0.05 | D26: 0.24 | F26: 0.005 | G26: 0.024 | I26: 0.01 | J26: 0.048 | L26: 0.015 | M26: 0.072 | O26: 0.02 | P26: 0.096
A27: 24 | B27: Fort Frances Power Corporation | C27: 0.61 | D27: 3.64 | F27: 0.061 | G27: 0.364 | I27: 0.122 | J27: 0.728 | L27: 0.183 | M27: 1.092 | O27: 0.244 | P27: 1.456
A28: 25 | B28: Greater Sudbury Hydro Inc. | C28: 8.22 | D28: 43.71 | F28: 0.822 | G28: 4.371 | I28: 1.644 | J28: 8.742 | L28: 2.466 | M28: 13.113 | O28: 3.288 | P28: 17.484
A29: 26 | B29: Grimsby Power Inc. | C29: 2.06 | D29: 7.76 | F29: 0.206 | G29: 0.776 | I29: 0.412 | J29: 1.552 | L29: 0.618 | M29: 2.328 | O29: 0.824 | P29: 3.104
A30: 27 | B30: Guelph Hydro Electric Systems Inc. | C30: 16.71 | D30: 79.53 | F30: 1.671 | G30: 7.953 | I30: 3.342 | J30: 15.906 | L30: 5.013 | M30: 23.859 | O30: 6.684 | P30: 31.812
A31: 28 | B31: Haldimand County Hydro Inc. | C31: 2.85 | D31: 13.3 | F31: 0.285 | G31: 1.33 | I31: 0.57 | J31: 2.66 | L31: 0.855 | M31: 3.99 | O31: 1.14 | P31: 5.32
A32: 29 | B32: Halton Hills Hydro Inc. | C32: 6.15 | D32: 22.48 | F32: 0.615 | G32: 2.248 | I32: 1.23 | J32: 4.496 | L32: 1.845 | M32: 6.744 | O32: 2.46 | P32: 8.992
A33: 30 | B33: Hearst Power Distribution Company Limited | C33: 0.68 | D33: 3.91 | F33: 0.068 | G33: 0.391 | I33: 0.136 | J33: 0.782 | L33: 0.204 | M33: 1.173 | O33: 0.272 | P33: 1.564
A34: 31 | B34: Horizon Utilities Corporation | C34: 60.36 | D34: 281.42 | F34: 6.036 | G34: 28.142 | I34: 12.072 | J34: 56.284 | L34: 18.108 | M34: 84.426 | O34: 24.144 | P34: 112.568
A35: 32 | B35: Hydro 2000 Inc. | C35: 0.19 | D35: 1.04 | F35: 0.019 | G35: 0.104 | I35: 0.038 | J35: 0.208 | L35: 0.057 | M35: 0.312 | O35: 0.076 | P35: 0.416
A36: 33 | B36: Hydro Hawkesbury Inc. | C36: 1.82 | D36: 9.28 | F36: 0.182 | G36: 0.928 | I36: 0.364 | J36: 1.856 | L36: 0.546 | M36: 2.784 | O36: 0.728 | P36: 3.712
A37: 34 | B37: Hydro One Brampton Networks Inc. | C37: 45.61 | D37: 189.54 | F37: 4.561 | G37: 18.954 | I37: 9.122 | J37: 37.908 | L37: 13.683 | M37: 56.862 | O37: 18.244 | P37: 75.816
A38: 35 | B38: Hydro One Networks Inc. | C38: 213.66 | D38: 1130.21 | F38: 21.366 | G38: 113.021 | I38: 42.732 | J38: 226.042 | L38: 64.098 | M38: 339.063 | O38: 85.464 | P38: 452.084
A39: 36 | B39: Hydro Ottawa Limited | C39: 85.26 | D39: 374.73 | F39: 8.526 | G39: 37.473 | I39: 17.052 | J39: 74.946 | L39: 25.578 | M39: 112.419 | O39: 34.104 | P39: 149.892
A40: 37 | B40: Innisfil Hydro Distribution Systems Limited | C40: 2.5 | D40: 9.2 | F40: 0.25 | G40: 0.92 | I40: 0.5 | J40: 1.84 | L40: 0.75 | M40: 2.76 | O40: 1 | P40: 3.68
A41: 38 | B41: Kashechewan Power Corporation | C41: 0.07 | D41: 0.33 | F41: 0.007 | G41: 0.033 | I41: 0.014 | J41: 0.066 | L41: 0.021 | M41: 0.099 | O41: 0.028 | P41: 0.132
A42: 39 | B42: Kenora Hydro Electric Corporation Ltd. | C42: 0.86 | D42: 5.22 | F42: 0.086 | G42: 0.522 | I42: 0.172 | J42: 1.044 | L42: 0.258 | M42: 1.566 | O42: 0.344 | P42: 2.088
A43: 40 | B43: Kingston Hydro Corporation | C43: 6.63 | D43: 37.16 | F43: 0.663 | G43: 3.716 | I43: 1.326 | J43: 7.432 | L43: 1.989 | M43: 11.148 | O43: 2.652 | P43: 14.864
A44: 41 | B44: Kitchener-Wilmot Hydro Inc. | C44: 21.56 | D44: 90.29 | F44: 2.156 | G44: 9.029 | I44: 4.312 | J44: 18.058 | L44: 6.468 | M44: 27.087 | O44: 8.624 | P44: 36.116
A45: 42 | B45: Lakefront Utilities Inc. | C45: 2.77 | D45: 13.59 | F45: 0.277 | G45: 1.359 | I45: 0.554 | J45: 2.718 | L45: 0.831 | M45: 4.077 | O45: 1.108 | P45: 5.436
A46: 43 | B46: Lakeland Power Distribution Ltd. | C46: 2.32 | D46: 10.18 | F46: 0.232 | G46: 1.018 | I46: 0.464 | J46: 2.036 | L46: 0.696 | M46: 3.054 | O46: 0.928 | P46: 4.072
A47: 44 | B47: London Hydro Inc. | C47: 41.44 | D47: 156.64 | F47: 4.144 | G47: 15.664 | I47: 8.288 | J47: 31.328 | L47: 12.432 | M47: 46.992 | O47: 16.576 | P47: 62.656
A48: 45 | B48: Middlesex Power Distribution Corporation | C48: 2.45 | D48: 9.25 | F48: 0.245 | G48: 0.925 | I48: 0.49 | J48: 1.85 | L48: 0.735 | M48: 2.775 | O48: 0.98 | P48: 3.7
A49: 46 | B49: Midland Power Utility Corporation | C49: 2.39 | D49: 10.82 | F49: 0.239 | G49: 1.082 | I49: 0.478 | J49: 2.164 | L49: 0.717 | M49: 3.246 | O49: 0.956 | P49: 4.328
A50: 47 | B50: Milton Hydro Distribution Inc. | C50: 8.05 | D50: 33.5 | F50: 0.805 | G50: 3.35 | I50: 1.61 | J50: 6.7 | L50: 2.415 | M50: 10.05 | O50: 3.22 | P50: 13.4
A51: 48 | B51: Newmarket - Tay Power Distribution Ltd. | C51: 8.76 | D51: 33.05 | F51: 0.876 | G51: 3.305 | I51: 1.752 | J51: 6.61 | L51: 2.628 | M51: 9.915 | O51: 3.504 | P51: 13.22
A52: 49 | B52: Niagara Peninsula Energy Inc. | C52: 15.49 | D52: 58.04 | F52: 1.549 | G52: 5.804 | I52: 3.098 | J52: 11.608 | L52: 4.647 | M52: 17.412 | O52: 6.196 | P52: 23.216
A53: 50 | B53: Niagara-on-the-Lake Hydro Inc. | C53: 2.42 | D53: 8.27 | F53: 0.242 | G53: 0.827 | I53: 0.484 | J53: 1.654 | L53: 0.726 | M53: 2.481 | O53: 0.968 | P53: 3.308
A54: 51 | B54: Norfolk Power Distribution Inc. | C54: 4.25 | D54: 15.68 | F54: 0.425 | G54: 1.568 | I54: 0.85 | J54: 3.136 | L54: 1.275 | M54: 4.704 | O54: 1.7 | P54: 6.272
A55: 52 | B55: North Bay Hydro Distribution Limited | C55: 5.05 | D55: 26.1 | F55: 0.505 | G55: 2.61 | I55: 1.01 | J55: 5.22 | L55: 1.515 | M55: 7.83 | O55: 2.02 | P55: 10.44
A56: 53 | B56: Northern Ontario Wires Inc. | C56: 1.06 | D56: 5.88 | F56: 0.106 | G56: 0.588 | I56: 0.212 | J56: 1.176 | L56: 0.318 | M56: 1.764 | O56: 0.424 | P56: 2.352
A57: 54 | B57: Oakville Hydro Electricity Distribution Inc. | C57: 20.7 | D57: 74.06 | F57: 2.07 | G57: 7.406 | I57: 4.14 | J57: 14.812 | L57: 6.21 | M57: 22.218 | O57: 8.28 | P57: 29.624
A58: 55 | B58: Orangeville Hydro Limited | C58: 2.78 | D58: 11.82 | F58: 0.278 | G58: 1.182 | I58: 0.556 | J58: 2.364 | L58: 0.834 | M58: 3.546 | O58: 1.112 | P58: 4.728
A59: 56 | B59: Orillia Power Distribution Corporation | C59: 3.07 | D59: 15.05 | F59: 0.307 | G59: 1.505 | I59: 0.614 | J59: 3.01 | L59: 0.921 | M59: 4.515 | O59: 1.228 | P59: 6.02
A60: 57 | B60: Oshawa PUC Networks Inc. | C60: 12.52 | D60: 52.24 | F60: 1.252 | G60: 5.224 | I60: 2.504 | J60: 10.448 | L60: 3.756 | M60: 15.672 | O60: 5.008 | P60: 20.896
A61: 58 | B61: Ottawa River Power Corporation | C61: 1.61 | D61: 8.97 | F61: 0.161 | G61: 0.897 | I61: 0.322 | J61: 1.794 | L61: 0.483 | M61: 2.691 | O61: 0.644 | P61: 3.588
A62: 59 | B62: PUC Distribution Inc. | C62: 5.58 | D62: 30.83 | F62: 0.558 | G62: 3.083 | I62: 1.116 | J62: 6.166 | L62: 1.674 | M62: 9.249 | O62: 2.232 | P62: 12.332
A63: 60 | B63: Parry Sound Power Corporation | C63: 0.74 | D63: 4.16 | F63: 0.074 | G63: 0.416 | I63: 0.148 | J63: 0.832 | L63: 0.222 | M63: 1.248 | O63: 0.296 | P63: 1.664
A64: 61 | B64: Peterborough Distribution Incorporated | C64: 8.72 | D64: 38.45 | F64: 0.872 | G64: 3.845 | I64: 1.744 | J64: 7.69 | L64: 2.616 | M64: 11.535 | O64: 3.488 | P64: 15.38
A65: 62 | B65: Port Colborne Hydro Inc. | C65: 2.33 | D65: 9.27 | F65: 0.233 | G65: 0.927 | I65: 0.466 | J65: 1.854 | L65: 0.699 | M65: 2.781 | O65: 0.932 | P65: 3.708
A66: 63 | B66: PowerStream Inc. | C66: 95.57 | D66: 407.34 | F66: 9.557 | G66: 40.734 | I66: 19.114 | J66: 81.468 | L66: 28.671 | M66: 122.202 | O66: 38.228 | P66: 162.936
A67: 64 | B67: Renfrew Hydro Inc. | C67: 1.05 | D67: 4.86 | F67: 0.105 | G67: 0.486 | I67: 0.21 | J67: 0.972 | L67: 0.315 | M67: 1.458 | O67: 0.42 | P67: 1.944
A68: 65 | B68: Rideau St. Lawrence Distribution Inc. | C68: 1.22 | D68: 5.1 | F68: 0.122 | G68: 0.51 | I68: 0.244 | J68: 1.02 | L68: 0.366 | M68: 1.53 | O68: 0.488 | P68: 2.04
A69: 66 | B69: Sioux Lookout Hydro Inc. | C69: 0.51 | D69: 3.32 | F69: =$C69*F$1 -> 0.051 | G69: =$D69*G$1 -> 0.332 | I69: =$C69*I$1 -> 0.102 | J69: =$D69*J$1 -> 0.664 | L69: =$C69*L$1 -> 0.153 | M69: =$D69*M$1 -> 0.996 | O69: =$C69*O$1 -> 0.204 | P69: =$D69*P$1 -> 1.328
A70: 67 | B70: St. Thomas Energy Inc. | C70: 3.94 | D70: 14.92 | F70: 0.394 | G70: 1.492 | I70: 0.788 | J70: 2.984 | L70: 1.182 | M70: 4.476 | O70: 1.576 | P70: 5.968
A71: 68 | B71: Thunder Bay Hydro Electricity Distribution Inc. | C71: 8.48 | D71: 47.38 | F71: 0.848 | G71: 4.738 | I71: 1.696 | J71: 9.476 | L71: 2.544 | M71: 14.214 | O71: 3.392 | P71: 18.952
A72: 69 | B72: Tillsonburg Hydro Inc. | C72: 2.29 | D72: 10.25 | F72: 0.229 | G72: 1.025 | I72: 0.458 | J72: 2.05 | L72: 0.687 | M72: 3.075 | O72: 0.916 | P72: 4.1
A73: 70 | B73: Toronto Hydro-Electric System Limited | C73: 286.27 | D73: 1303.99 | F73: 28.627 | G73: 130.399 | I73: 57.254 | J73: 260.798 | L73: 85.881 | M73: 391.197 | O73: 114.508 | P73: 521.596
A74: 71 | B74: Veridian Connections Inc. | C74: 29.05 | D74: 115.74 | F74: 2.905 | G74: 11.574 | I74: 5.81 | J74: 23.148 | L74: 8.715 | M74: 34.722 | O74: 11.62 | P74: 46.296
A75: 72 | B75: Wasaga Distribution Inc. | C75: 1.34 | D75: 4.01 | F75: 0.134 | G75: 0.401 | I75: 0.268 | J75: 0.802 | L75: 0.402 | M75: 1.203 | O75: 0.536 | P75: 1.604
A76: 73 | B76: Waterloo North Hydro Inc. | C76: 15.79 | D76: 66.49 | F76: 1.579 | G76: 6.649 | I76: 3.158 | J76: 13.298 | L76: 4.737 | M76: 19.947 | O76: 6.316 | P76: 26.596
A77: 74 | B77: Welland Hydro-Electric System Corp. | C77: 5.56 | D77: 20.6 | F77: 0.556 | G77: 2.06 | I77: 1.112 | J77: 4.12 | L77: 1.668 | M77: 6.18 | O77: 2.224 | P77: 8.24
A78: 75 | B78: Wellington North Power Inc. | C78: 0.93 | D78: 4.52 | F78: 0.093 | G78: 0.452 | I78: 0.186 | J78: 0.904 | L78: 0.279 | M78: 1.356 | O78: 0.372 | P78: 1.808
A79: 76 | B79: West Coast Huron Energy Inc. | C79: 0.88 | D79: 8.28 | F79: 0.088 | G79: 0.828 | I79: 0.176 | J79: 1.656 | L79: 0.264 | M79: 2.484 | O79: 0.352 | P79: 3.312
A80: 77 | B80: West Perth Power Inc. | C80: 0.62 | D80: 2.99 | F80: 0.062 | G80: 0.299 | I80: 0.124 | J80: 0.598 | L80: 0.186 | M80: 0.897 | O80: 0.248 | P80: 1.196
A81: 78 | B81: Westario Power Inc. | C81: 4.24 | D81: 20.95 | F81: 0.424 | G81: 2.095 | I81: 0.848 | J81: 4.19 | L81: 1.272 | M81: 6.285 | O81: 1.696 | P81: 8.38
A82: 79 | B82: Whitby Hydro Electric Corporation | C82: 10.9 | D82: 39.07 | F82: 1.09 | G82: 3.907 | I82: 2.18 | J82: 7.814 | L82: 3.27 | M82: 11.721 | O82: 4.36 | P82: 15.628
A83: 80 | B83: Woodstock Hydro Services Inc. | C83: 4.49 | D83: 18.88 | F83: 0.449 | G83: 1.888 | I83: 0.898 | J83: 3.776 | L83: 1.347 | M83: 5.664 | O83: 1.796 | P83: 7.552
C84: =SUM(C3:C83) -> 1351.99 | D84: =SUM(D3:D83) -> 6082.34 | F84: =SUM(F3:F83) -> 135.199 | G84: =SUM(G3:G83) -> 608.234 | I84: =SUM(I3:I83) -> 270.398 | J84: =SUM(J3:J83) -> 1216.468 | L84: =SUM(L3:L83) -> 405.597 | M84: =SUM(M3:M83) -> 1824.702 | O84: =SUM(O3:O83) -> 540.796 | P84: =SUM(P3:P83) -> 2432.936

Sheet Sheet1 (hidden)
A2: Table 16 – Burlington Hydro Forecast Summary
B3: Residential Class | G3: GS<50 kW Class
A4: Year | B4: Actual kWh | C4: % | D4: Normalized kWh | E4: % | G4: Actual kWh | H4: % | I4: Normalized kWh | J4: %
A5: 2010 | B5: 556896336 | C5: 0.063 | D5: 543050505 | E5: 0.011 | G5: 172200325 | H5: -0.001 | I5: 174251015 | J5: 0.003
A6: 2011 | B6: 551353006 | C6: -0.01 | D6: 546837854 | E6: 0.007 | G6: 174484065 | H6: 0.013 | I6: 174045762 | J6: -0.001
A7: 2012 | B7: 551839571 | C7: 0.001 | D7: 552064145 | E7: 0.01 | G7: 174704767 | H7: 0.001 | I7: 174672454 | J7: 0.004
A8: 2013 | D8: 553523828 | E8: 0.003 | I8: 173805678 | J8: -0.005
A9: 2014 | D9: 556904597 | E9: 0.006 | I9: 174117497 | J9: 0.002
B12: GS>50 kW Class | G12: GS>50 kW Class
A13: Year | B13: Actual kWh | C13: % | D13: Normalized kWh | E13: % | G13: Actual kW | H13: % | I13: Normalized kW | J13: %
A14: 2010 | B14: 906197008 | C14: 0.031 | D14: 900569510 | E14: 0.003 | G14: 2403006 | H14: 0.021 | I14: 2388083 | J14: -0.006
A15: 2011 | B15: 908229110 | C15: 0.002 | D15: 899364853 | E15: -0.001 | G15: 2396756 | H15: -0.003 | I15: 2373364 | J15: -0.006
A16: 2012 | B16: 903337846 | C16: -0.005 | D16: 903067037 | E16: 0.004 | G16: 2423043 | H16: 0.011 | I16: 2422317 | J16: 0.021
A17: 2013 | D17: 897955770 | E17: -0.006 | I17: 2408607 | J17: -0.006
A18: 2014 | D18: 899785875 | E18: 0.002 | I18: 2413515 | J18: 0.002
B20: Streetlight | D20: Streetlight | I20: USL
A21: Year | B21: kWh | C21: % | D21: kW | E21: % | I21: kWh | J21: %
A22: 2010 | B22: 9467387 | C22: 0.008 | D22: 26416 | E22: 0.021 | I22: 3512551 | J22: 0.007
A23: 2011 | B23: 9847280 | C23: 0.04 | D23: 27334 | E23: 0.035 | I23: 3296779 | J23: -0.061
A24: 2012 | B24: 9866380 | C24: 0.002 | D24: 27457 | E24: 0.004 | I24: 3353868 | J24: 0.017
A25: 2013 | B25: 10006706 | C25: 0.014 | D25: 27848 | E25: 0.014 | I25: 3353868 | J25: 0
A26: 2014 | B26: 10149029 | C26: 0.014 | D26: 28244 | E26: 0.014 | I26: 3353868 | J26: 0
B27: Total Retail
A28: Year | B28: Actual kWh | C28: % | D28: Norm/Forecast kWh | E28: %
A29: 2010 | B29: 1648273607 | C29: 0.038 | D29: 1630850967 | E29: 0.006
A30: 2011 | B30: 1647210240 | C30: -0.001 | D30: 1633392528 | E30: 0.002
A31: 2012 | B31: 1643102432 | C31: -0.002 | D31: 1643023884 | E31: 0.006
A32: 2013 | D32: 1638645849 | E32: -0.003
A33: 2014 | D33: 1644310865 | E33: 0.003
